Cogmind - Beta 16 @@@ ROGUE MODE // 2026.02.09 @ 03:00:58 Player: FISH Result: Destroyed by H-66 Slayer with Gauss Rifle Performance ------------- Evolutions (4) 2000 Regions Visited (18) 3600 Robots Destroyed (308) 1540 Value Destroyed (13533) 13533 Prototype IDs (25) 500 Alien Tech Used (0) 0 Bonus (3425) 3425 TOTAL SCORE: 24598 Bonus ------- High Alert Combat Kills 2118 Follower Combat Kills 809 Entered Garrisons 400 Entered DSFs 500 Network Hubs Disabled 400 Friendly Fire -802 Cogmind --------- Core Integrity 0/850 Matter 112/300 Energy 350/350 System Corruption 36% Temperature Cool (37) Movement Immobile (Siege) Location -6/Hub_04(d) Parts ------- > --- POWER (2) -------- Quantum Reactor > --- PROPULSION (5) --- Improved Treads (fused) Centrium Heavy Treads Centrium Heavy Treads > --- UTILITY (6) ------ High-capacity Storage Unit Experimental Targeting Computer Core Analyzer Advanced Weapon Cycler Centrium Medium Armor Plating Centrium Medium Armor Plating > --- WEAPON (2) ------- Advanced KE Penetrator Advanced KE Penetrator > --- INVENTORY (20) --- Quantum Reactor Centrium Heavy Treads Centrium Heavy Treads Experimental Heat Sink Improved Cooling System Structural Scanner Experimental Sensor Array Seismic Detector Transmission Jammer Centrium Medium Armor Plating EM Shield Improved Hacking Suite Improved System Shield Improved System Shield Compact Ion Cannon Remote Datajack Power Sword Peak State ------------ > --- POWER ------------ Light Angular Momentum Engine Quantum Reactor > --- PROPULSION ------- Improved Treads Centrium Heavy Treads Centrium Heavy Treads > --- UTILITY ---------- High-capacity Storage Unit Experimental Sensor Array Experimental Targeting Computer Core Analyzer Centrium Medium Armor Plating Centrium Medium Armor Plating > --- WEAPON ----------- Advanced KE Penetrator Advanced KE Penetrator > --- INVENTORY -------- Quantum Reactor Centrium Heavy Treads Centrium Heavy Treads Experimental Heat Sink Improved Cooling System Structural Scanner Seismic Detector Advanced Weapon Cycler Transmission Jammer Centrium Medium Armor Plating EM Shield Improved Hacking Suite Improved System Shield Improved System Shield Compact Ion Cannon Advanced KE Penetrator Remote Datajack Power Sword [Rating: 118] Favorites ----------- Power Deuterium Engine Engine Deuterium Engine Power Core Reinforced Fission Core Reactor Quantum Reactor Propulsion Light Treads Treads Light Treads Leg Armored Leg Wheel Wheel Flight Unit Cesium-ion Thruster Utility High-capacity Storage Unit Device Experimental Heat Sink Storage High-capacity Storage Unit Processor Experimental Targeting Computer Hackware Hacking Suite Protection Hardened Light Armor Plating Weapon Flak Gun Energy Gun Gatling Laser Energy Cannon Ion Cannon Ballistic Gun Flak Gun Ballistic Cannon Light Cannon Launcher Rocket Launcher Special Weapon Remote Datajack Piercing Weapon Heavy Pick Build | -11 -10 -9 -9 -9 -8 -8 -8 -8 -8 -7 -7 -6 -6 -6 -6 -6 -6 -6 ------- Run | Yrd Mat Mat Min Exi Min Mat Gar Mat Gar Fac DSF Fac Was Fac Ext Cet Arc Hub Slots Evolved 8 | . . 2 . . . 2 . . . 2 . 2 . . . . . . Power 1 | . . . . . . . . . . 1 . . . . . . . . Propulsion 3 | . . 1 . . . 1 . . . . . 1 . . . . . . Utility 4 | . . 1 . . . 1 . . . 1 . 1 . . . . . . Weapon . | . . . . . . . . . . . . . . . . . . . Parts Attached 190 | 7 15 18 4 13 2 21 8 2 14 2 15 8 3 23 15 13 4 3 Power 27 | 1 1 2 1 1 . . 2 . 2 1 1 2 . 5 5 2 1 . Engine 13 | 1 1 2 1 . . . 1 . 1 . . 1 . 3 1 . 1 . Core 13 | . . . . 1 . . 1 . 1 1 1 1 . 2 4 1 . . Reactor 1 | . . . . . . . . . . . . . . . . 1 . . Propulsion 63 | 2 6 6 1 3 . 10 . 1 4 . 8 1 3 5 7 5 1 . Treads 26 | . 2 6 1 3 . 6 . 1 4 . . . . . . 2 1 . Leg 33 | 2 4 . . . . 1 . . . . 8 1 3 4 7 3 . . Wheel 3 | . . . . . . 2 . . . . . . . 1 . . . . Hover . | . . . . . . . . . . . . . . . . . . . Flight 1 | . . . . . . 1 . . . . . . . . . . . . Utility 62 | 2 2 6 1 6 2 6 3 1 5 1 5 3 . 10 2 3 2 2 Device 26 | 1 1 1 . 5 2 1 1 . 1 1 2 2 . 6 . 1 1 . Storage 5 | 1 1 2 . . . 1 . . . . . . . . . . . . Processor 10 | . . 1 1 . . 2 . . . . 1 . . 3 1 1 . . Hackware 5 | . . . . . . . 1 . 1 . . 1 . 1 . . . 1 Protection 16 | . . 2 . 1 . 2 1 1 3 . 2 . . . 1 1 1 1 Artifact . | . . . . . . . . . . . . . . . . . . . Weapon 38 | 2 6 4 1 3 . 5 3 . 3 . 1 2 . 3 1 3 . 1 Energy Gun 9 | . 1 1 . 1 . 2 . . 2 . . . . 1 . 1 . . Energy Cannon 4 | . . 1 . . . 2 . . . . . . . 1 . . . . Ballistic Gun 17 | 2 4 2 . 1 . 1 2 . . . . 1 . 1 . 2 . 1 Ballistic Cannon 1 | . 1 . . . . . . . . . . . . . . . . . Launcher 5 | . . . 1 1 . . 1 . . . 1 1 . . . . . . Special Weapon 1 | . . . . . . . . . . . . . . . 1 . . . Impact Weapon . | . . . . . . . . . . . . . . . . . . . Slashing Weapon . | . . . . . . . . . . . . . . . . . . . Piercing Weapon 1 | . . . . . . . . . 1 . . . . . . . . . Special Melee Weapon . | . . . . . . . . . . . . . . . . . . . Unidentified Prototypes 17 | . . 3 . 4 1 3 . . . . . 2 . 1 . 3 . . Parts Lost 49 | . 4 1 . 5 . 5 2 1 3 . 2 . 3 3 5 13 . 2 Power 13 | . 1 1 . . . . 1 . 1 . 1 . . 2 1 4 . 1 Propulsion 20 | . 1 . . 2 . 4 . 1 . . 1 . 3 1 2 5 . . Utility 6 | . . . . 1 . . 1 . 2 . . . . . 1 1 . . Weapon 10 | . 2 . . 2 . 1 . . . . . . . . 1 3 . 1 Highest Loss Streak 6 | . 3 1 . 5 . 2 2 1 1 . 2 . 3 1 2 6 . 2 To Critical Strikes 6 | . . . . 3 . . . 1 . . . . . . . 2 . . Average Backups 17 | 3 8 12 19 18 16 18 18 18 18 18 18 18 17 18 19 17 17 17 Power . | . . . 1 1 1 1 . . . 1 . . . . 1 . 1 1 Propulsion 2 | 2 4 3 4 3 1 1 3 2 3 2 1 2 1 . 1 3 2 2 Utility 8 | . 1 3 6 7 10 10 9 10 7 8 8 9 11 11 10 9 10 10 Weapon 5 | . 1 5 7 5 4 4 5 5 6 7 7 6 5 5 5 3 3 3 Tool/Special . | . . . . . . . . . . . . . . . . . . . Unused Backups 44 | . 3 3 3 1 . 9 1 1 . . 5 2 . 2 2 1 2 9 Power 5 | . 1 . 1 . . 1 . . . . . . . . 1 . . 1 Propulsion 8 | . 1 . 1 . . . . . . . 2 1 . . 1 . . 2 Utility 17 | . 1 3 . 1 . 4 1 . . . 1 . . 2 . . 1 3 Weapon 14 | . . . 1 . . 4 . 1 . . 2 1 . . . 1 1 3 Tool/Special . | . . . . . . . . . . . . . . . . . . . Average Slot Usage (%) 97 | . 98 99 100 88 98 98 99 97 99 99 99 99 79 92 99 91 81 85 Engine 6 | . 12 10 11 7 . . 8 9 4 . 3 5 2 6 2 . 1 5 Core 3 | . . . . 3 11 9 . . 3 15 11 6 2 3 10 8 . . Treads 23 | . 1 33 33 33 33 26 36 33 35 30 17 . . . . 1 18 19 Leg 8 | . 26 . . . . . . . . . 12 33 28 29 33 27 1 . Device 8 | . 14 12 . 3 17 8 2 . 6 16 15 22 22 9 10 7 6 11 Storage 9 | . 14 11 11 11 11 9 9 9 9 7 7 6 6 6 6 6 6 6 Processor 10 | . . 7 11 11 . 8 9 9 9 7 7 6 6 18 17 20 13 13 Hackware 1 | . . . . . . . 6 9 2 . . . . 1 . . . . Protection 6 | . . 1 10 7 3 9 9 9 8 5 6 3 . 1 4 4 12 7 Energy Gun 4 | . 1 5 11 1 . . . . 7 7 14 9 9 4 . 3 . . Energy Cannon 1 | . . 5 . . . 6 4 1 . . . . . 1 2 . . . Ballistic Gun 9 | . 23 7 11 7 22 11 12 16 8 . . . . 3 8 7 13 12 Peak Build Rating 118 | 7 10 21 28 37 38 52 51 45 50 58 68 86 82 78 82 115 117 118 Average Rating 46 | 5 7 16 26 25 33 43 45 43 46 57 60 81 65 70 76 74 113 109 On Entrance 49 | . 7 10 20 28 34 34 51 44 44 46 58 62 82 56 72 73 114 111 Avg Prop Armor Cover (%) 11 | . . . . . . 15 . . . . 8 . 7 4 . 3 2 . Naked Turns . | . . . . . . . . . . . . . . . . . . . Heaviest Build 96 | 14 22 58 65 73 75 91 79 64 64 62 71 90 77 69 86 81 96 96 Greatest Support 183 | 20 40 60 63 72 72 92 92 100 100 96 96 80 84 83 80 160 183 183 Greatest Overweight (x) 7 | . 1 . 1 1 1 7 . . . . 1 1 . 1 1 1 1 . Average Overweight (x) . | . . . . . . 1 . . . . . . . . . . . . Largest Inventory Capacity 20 | 8 10 20 20 20 20 20 20 20 20 20 20 20 20 20 20 20 20 20 Average Capacity 18 | 6 9 14 20 20 20 20 20 20 20 20 20 20 20 20 20 20 20 20 Most Carried 20 | 6 10 20 20 20 20 20 20 20 20 20 20 20 20 20 20 20 20 20 Average Carried 18 | 3 8 12 19 19 19 19 19 19 19 19 19 19 18 19 19 17 19 19 Final Capacity 20 | 8 10 20 20 20 20 20 20 20 20 20 20 20 20 20 20 20 20 20 Final Carried 20 | 6 10 20 20 20 20 20 20 20 20 20 20 20 19 19 19 19 20 19 Class Distribution -------------------- 60% | Mutant 35% | Scavenger-Mutant 3% | Commander-Mutant Dominant Class ---------------- Mutant | -10/Materials Mutant | -9/Materials Mutant | -9/Mines Mutant | -9/Exiles Scavenger-Mutant | -8/Mines Scavenger-Mutant | -8/Materials Mutant | -8/Garrison Mutant | -8/Materials Mutant | -8/Garrison Scavenger-Mutant | -7/Factory Scavenger-Mutant | -7/DSF Mutant | -6/Factory Mutant | -6/Waste Mutant | -6/Factory Mutant | -6/Extension Scavenger-Mutant | -6/Cetus Scavenger-Mutant | -6/Archives Scavenger-Mutant | -6/Hub_04(d) Resources | -11 -10 -9 -9 -9 -8 -8 -8 -8 -8 -7 -7 -6 -6 -6 -6 -6 -6 -6 ----------- Run | Yrd Mat Mat Min Exi Min Mat Gar Mat Gar Fac DSF Fac Was Fac Ext Cet Arc Hub Matter Collected 9040 | 275 695 542 215 318 255 947 604 126 1120 . 340 424 . 473 1370 415 334 587 Remotely . | . . . . . . . . . . . . . . . . . . . Salvage Created 11607 | 71 728 1185 147 135 25 1518 821 199 1524 23 446 663 . 598 1600 335 446 1143 Parts 615 | 6 47 72 8 7 5 75 46 10 93 4 15 12 . 32 77 14 29 63 Haulers Intercepted 5 | . 1 3 . . . 1 . . . . . . . . . . . . Recyclers Shooed 5 | . . 1 . . . 2 . . . . . 1 . 1 . . . . Parts Field Recycled . | . . . . . . . . . . . . . . . . . . . Retrieved Matter . | . . . . . . . . . . . . . . . . . . . Parts Self-Destructed . | . . . . . . . . . . . . . . . . . . . Prevented . | . . . . . . . . . . . . . . . . . . . Parts Restored . | . . . . . . . . . . . . . . . . . . . Kills | -11 -10 -9 -9 -9 -8 -8 -8 -8 -8 -7 -7 -6 -6 -6 -6 -6 -6 -6 ------- Run | Yrd Mat Mat Min Exi Min Mat Gar Mat Gar Fac DSF Fac Was Fac Ext Cet Arc Hub Combat Hostiles Destroyed 244 | . 20 23 3 4 . 26 25 5 50 . 14 12 . 8 30 5 4 15 Guns 179 | . 20 18 3 2 . 14 21 5 36 . 9 8 . 8 11 5 4 15 Cannons 17 | . . 4 . . . 8 . . . . . . . . 5 . . . AOE 42 | . . . . 2 . 3 4 . 13 . 5 2 . . 13 . . . Classes Destroyed 21 | 2 5 2 2 . 1 2 2 . 1 . 1 1 . . 2 . . . Worker 13 | . . . . . 1 3 . . . . . . . 3 4 . . 2 Builder 8 | . . . 2 . . . . . . . . . . 3 2 . . 1 Tunneler 5 | 1 . . . . 1 . . . . 1 . . . . 2 . . . Hauler 5 | . 1 3 . . . 1 . . . . . . . . . . . . Recycler 12 | 1 . 1 2 . . 3 . . . . . 1 . 2 1 . . 1 Mechanic 1 | . . . . . . 1 . . . . . . . . . . . . Operator 11 | . 1 2 . . . 1 . . . . . 2 . . 1 . 4 . Watcher 11 | . 1 2 . . . 3 . . . . . 1 . . 1 1 . 2 Swarmer 56 | . 6 7 . . . 7 4 . 11 . 7 . . 3 10 . . 1 Cutter 2 | . . . . . . . 2 . . . . . . . . . . . Grunt 93 | . 14 6 . . . 9 7 4 25 . 2 8 . 1 14 . . 3 Brawler 2 | . . 1 . . . . . . . . . . . . 1 . . . Duelist 2 | . . . . . . . . . . . . 1 . . . . . 1 Protector 2 | . . . . . . . . . . . . . . . 1 . . 1 Sentry 47 | . . 9 . . . 8 10 1 7 . . 2 . . 2 . 4 4 Specialist 6 | . . . . . . . . . 1 . 4 . . 1 . . . . Hunter 5 | . . . . . . 2 . . 1 . . . . . . . . 2 Programmer 13 | . . . . . . . 2 . 5 . . 1 . 2 1 . . 2 Heavy 2 | . . . . . . . . . . . 1 . . 1 . . . . Behemoth 1 | . . . . . . . . . . . . . . . 1 . . . Cetus Guard 5 | . . . . . . . . . . . . . . . . 5 . . Lightning 1 | . . . . . . . . . . . . . . . . . . 1 Assembled 10 | . . . 3 7 . . . . . . . . . . . . . . Savage 3 | . . . . . . . . . . . . . . . 2 1 . . Guerrilla 1 | . . . . . . . . . . . . . . . . 1 . . Best Kill Streak 11 | 2 4 6 1 3 1 6 6 2 7 1 8 6 . 4 11 3 3 5 Combat Bots Only 11 | . 4 5 1 3 . 4 6 2 7 . 8 4 . 4 11 3 1 4 Max Kills in Single Turn 6 | 1 1 2 1 4 1 4 2 1 5 1 2 2 . 2 6 1 2 2 Gunslinging 1 | . . 1 . . . . 1 . 1 . 1 . . 1 . . . 1 Exploded 6 | . . . . 1 . 3 2 . 5 . 2 2 . . 6 . . . Melee . | . . . . . . . . . . . . . . . . . . . Uniques/NPCs Destroyed 1 | . . . . 1 . . . . . . . . . . . . . . 8R-AWN (-9/Exiles) Combat | -11 -10 -9 -9 -9 -8 -8 -8 -8 -8 -7 -7 -6 -6 -6 -6 -6 -6 -6 -------- Run | Yrd Mat Mat Min Exi Min Mat Gar Mat Gar Fac DSF Fac Was Fac Ext Cet Arc Hub Hostile Shots Fired 1198 | . 121 112 3 87 2 98 39 7 169 . 31 101 3 61 129 90 19 126 Missed 333 | . 36 34 1 16 . 20 9 1 54 . 9 37 . 10 49 24 7 26 Hits 865 | . 85 78 2 71 2 78 30 6 115 . 22 64 3 51 80 66 12 100 Melee 10 | . . 3 . . . . 1 . . . . 2 3 . . . . 1 Projectile 855 | . 85 75 2 71 2 78 29 6 115 . 22 62 . 51 80 66 12 99 AOE 2 | . . . . . . . 1 . . . . . . . . . . 1 Critical Strikes 71 | . . 2 . 32 . 1 2 1 5 . . 2 2 3 2 10 1 8 Part Disruptions 2 | . . . . . . . 1 . 1 . . . . . . . . . Damage Taken 14581 | . 890 907 26 1383 178 1169 481 167 1599 . 423 459 142 1187 1303 1861 287 2119 Core 1745 | . 182 105 11 191 20 89 30 17 160 . 84 3 . 187 103 433 49 81 Absorbed by Shields 421 | . . . . . . . 8 . . . . 413 . . . . . . Reduced by Siege Mode 155 | . . . . . . . . . . . . . . . . . 30 125 Ignored by Resistances 257 | . . . . . . . . . . . . 106 . 45 74 . . 32 Regen/Repaired (Parts) 536 | . . 78 . . . 123 . 252 . . . 83 . . . . . . Core Remaining (%) 55 | 100 27 . . . 18 . . . 46 . 88 . . . . . . . Volleys Fired 811 | 3 71 59 8 52 2 95 59 14 82 1 20 39 . 44 142 34 22 64 Largest 2 | 2 2 2 2 2 1 2 2 2 2 1 2 2 . 2 2 2 2 2 Hottest 160 | 40 85 98 94 84 23 88 88 60 160 80 160 160 . 110 120 111 70 70 Shots Fired 1424 | 6 141 118 19 90 2 171 95 27 162 1 34 77 . 63 212 54 42 110 Gun 1150 | 6 130 94 18 84 2 118 64 26 149 1 28 74 . 47 109 48 42 110 Cannon 183 | . 11 24 . . . 52 23 1 . . . . . 16 56 . . . Launcher 53 | . . . 1 6 . 1 8 . 13 . 6 3 . . 9 6 . . Special 38 | . . . . . . . . . . . . . . . 38 . . . Kinetic 915 | 6 133 59 8 77 2 112 64 26 106 . . 7 . 23 109 31 42 110 Thermal 418 | . 8 59 10 7 . 58 23 1 43 1 28 67 . 40 56 17 . . Explosive 43 | . . . 1 6 . 1 4 . 7 . 6 3 . . 9 6 . . Electromagnetic 10 | . . . . . . . 4 . 6 . . . . . . . . . Robot Hit Streak 59 | 1 13 15 4 15 7 27 17 18 59 . 20 35 . 20 27 20 20 11 Robot Miss Streak 8 | 1 3 4 2 2 . 2 6 7 4 . 1 3 . 3 8 2 3 4 Penetration Max 2 | . . . . . . . . . . . . . . 1 2 1 1 1 Secondary Targets 30 | . 2 4 . . . 3 3 . 7 . 1 2 . 2 1 1 . 4 Max Gunslinging Chain 1 | . 1 1 . . . 1 1 . 1 . 1 1 . 1 1 1 . 1 Shots Hit Robots 1014 | 3 89 80 8 74 2 121 57 24 129 1 29 71 . 43 142 44 28 69 Core Hits 772 | 3 37 36 5 29 2 63 98 32 174 1 32 61 . 30 77 38 19 35 Critical Kills 23 | 1 . 1 . . . 2 . . . . . . . . 4 1 3 11 Critical Parts Destroyed 12 | . . 1 . . . . . . . . . . . . 1 . 2 8 Critical Strikes 41 | 1 . 4 1 . . 2 . . . . . . . . 5 3 6 19 Burn 5 | . . 2 1 . . . . . . . . . . . . 2 . . Meltdown 3 | . . 1 . . . 1 . . . . . . . . 1 . . . Destroy 33 | 1 . 1 . . . 1 . . . . . . . . 4 1 6 19 Melee Attacks 54 | . . . . . . . . . 13 7 . 12 . 21 . . . 1 Impact . | . . . . . . . . . . . . . . . . . . . Slashing . | . . . . . . . . . . . . . . . . . . . Piercing 54 | . . . . . . . . . 13 7 . 12 . 21 . . . 1 Sneak Attacks 5 | . . . . . . . . . . 1 . . . 4 . . . . Combat Hostiles . | . . . . . . . . . . . . . . . . . . . Follow-up Attacks . | . . . . . . . . . . . . . . . . . . . Damage Inflicted 27480 | 39 929 1573 204 1384 47 2583 1456 519 3704 64 1277 2563 . 1479 4862 1769 880 2148 Guns 18747 | 31 854 1172 134 1022 28 1265 1217 519 2880 . 696 2002 . 1032 1825 1079 880 2111 Cannons 2835 | . 67 366 . . . 1001 28 . . . . . . 33 1340 . . . Explosions 5152 | . . . . 362 . 313 211 . 824 . 581 505 . . 1675 681 . . Melee 356 | . . . . . . . . . . 64 . . . 292 . . . . Ramming 390 | 8 8 35 70 . 19 4 . . . . . 56 . 122 22 9 . 37 Kinetic 13481 | 31 832 537 54 990 28 1216 1217 519 1974 . . 135 . 420 1825 712 880 2111 Thermal 8182 | . 89 1001 80 32 . 1131 28 . 906 . 696 1867 . 645 1340 367 . . Explosive 4849 | . . . . 362 . 232 161 . 652 . 581 505 . . 1675 681 . . Electromagnetic 222 | . . . . . . . 50 . 172 . . . . . . . . . Impact . | . . . . . . . . . . . . . . . . . . . Slashing . | . . . . . . . . . . . . . . . . . . . Piercing 356 | . . . . . . . . . . 64 . . . 292 . . . . Highest Corruption 36 | . 2 4 4 4 4 . . . 2 . . 1 19 21 22 22 22 36 Average Corruption 9 | . 1 3 4 4 4 . . . 1 . . 1 10 20 21 22 22 23 Corruption Purged . | . . . . . . . . . . . . . . . . . . . Corruption Blocked . | . . . . . . . . . . . . . . . . . . . Effects 416 | . 11 21 94 26 4 . . . 18 . . 2 7 61 75 22 14 61 Message Errors 95 | . 4 5 20 8 . . . . 4 . . 1 1 15 16 5 4 12 Matter Fused 85 | . 2 7 16 5 4 . . . 6 . . . 2 10 15 2 2 14 Heat Flow Errors 52 | . . 4 19 3 . . . . 3 . . . 2 7 9 . . 5 Energy Discharges 48 | . 1 2 12 2 . . . . 1 . . . . 10 8 2 2 8 Parts Rejected 8 | . . . . 1 . . . . . . . . 1 . 3 2 1 . Parts Fused 2 | . . . 1 . . . . . . . . . . . . . . 1 Data Loss (minor) 46 | . 1 3 14 1 . . . . 2 . . 1 . 5 9 3 2 5 Data Loss (major) 21 | . 2 . 6 1 . . . . . . . . . 3 5 2 . 2 Misfires 16 | . . . 3 . . . . . 2 . . . . 3 4 1 . 3 Alerts 16 | . . . 3 4 . . . . . . . . 1 2 1 1 . 4 Misdirections 4 | . . . . . . . . . . . . . . 2 . . 1 1 Weapon Failures 23 | . 1 . . 1 . . . . . . . . . 4 5 4 2 6 Overload Shots . | . . . . . . . . . . . . . . . . . . . Overflow Damage 534 | . . . . . . 93 . . 88 . 52 8 . 157 67 69 . . Projectiles 80 | . . . . . . 24 . . . . . . . . 56 . . . Explosions 321 | . . . . . . 69 . . 88 . 52 8 . 24 11 69 . . Melee 133 | . . . . . . . . . . . . . . 133 . . . . Knockbacks 4 | . 1 1 . . 1 . . . . . . 1 . . . . . . Impact 3 | . . 1 . . 1 . . . . . . 1 . . . . . . Kinetic 1 | . 1 . . . . . . . . . . . . . . . . . Secondary . | . . . . . . . . . . . . . . . . . . . Self-Inflicted Damage 429 | . . . . . . . . . . . . 98 . 204 59 68 . . Shots 6 | . . . . . . . . . . . . 2 . 2 1 1 . . Rammed 24 | . . 9 8 . 1 1 . . . . . . . . . . . 5 Targets Rammed 45 | 3 3 9 10 . 2 1 . . . . . 5 . 4 2 1 . 5 Kicked 18 | 3 3 . . . . . . . . . . 5 . 4 2 1 . . Crushed 3 | . . . 2 . 1 . . . . . . . . . . . . . Highest Temperature 431 | . 268 259 279 336 8 400 98 20 318 . 431 292 192 406 303 239 114 236 Average Temperature 82 | . 68 89 90 149 5 66 23 7 39 . 130 72 112 98 81 108 39 78 Received Heat Transfer 2788 | . 411 315 . . 18 405 114 54 603 . 9 145 . 72 453 99 45 45 Effects 9 | . . 1 1 3 . . . . . . 2 . . 2 . . . . Shutdowns 2 | . . . . . . . . . . . 2 . . . . . . . Energy Bleed 4 | . . 1 1 1 . . . . . . . . . 1 . . . . Interference 3 | . . . . 2 . . . . . . . . . 1 . . . . Siege Activations 7 | . . . . . . . . . . . . . . . . . 2 5 Total Turns 83 | . . . . . . . . . . . . . . . . . 20 63 Longest Duration 38 | . . . . . . . . . . . . . . . . . 14 38 Martial Activations . | . . . . . . . . . . . . . . . . . . . Shielding Activations . | . . . . . . . . . . . . . . . . . . . Robots Disrupted . | . . . . . . . . . . . . . . . . . . . Combat Hostiles . | . . . . . . . . . . . . . . . . . . . Robots Corrupted 1 | . . . . . . . . . . . . . . 1 . . . . Combat Hostiles . | . . . . . . . . . . . . . . . . . . . Parts Fried 2 | . . . . . . . . . . . . . . 2 . . . . Impact Corruptions 2 | . . . . . . . . . . . . . . 2 . . . . Robots Melted 7 | . . 1 . . . 1 . . 1 . 1 2 . . 1 . . . Combat Hostiles 6 | . . 1 . . . 1 . . 1 . . 2 . . 1 . . . Parts Melted 38 | . . 4 . . . 2 . . 3 . 7 9 . 3 7 3 . . Heat Transferred 16065 | . 222 1924 222 91 . 1604 37 . 1975 . 1600 4175 . 1375 2100 740 . . Parts Sabotaged . | . . . . . . . . . . . . . . . . . . . Parts Stolen . | . . . . . . . . . . . . . . . . . . . Parts Stripped . | . . . . . . . . . . . . . . . . . . . Power Chain Reactions . | . . . . . . . . . . . . . . . . . . . Alert | -11 -10 -9 -9 -9 -8 -8 -8 -8 -8 -7 -7 -6 -6 -6 -6 -6 -6 -6 ------- Run | Yrd Mat Mat Min Exi Min Mat Gar Mat Gar Fac DSF Fac Was Fac Ext Cet Arc Hub Maximum Alert Level 5 | . . 1 . . . 1 4 3 5 4 4 2 1 . 3 2 1 1 Low Security (%) 58 | 100 100 86 100 . 100 49 16 . . . . . 91 100 72 . 98 81 Level 1 10 | . . 13 . . . 50 5 . 4 . . . 8 . 17 40 1 18 Level 2 11 | . . . . . . . 13 9 19 . . 100 . . 8 59 . . Level 3 8 | . . . . . . . 33 90 16 . 46 . . . 1 . . . Level 4 8 | . . . . . . . 30 . 29 100 53 . . . . . . . Level 5 3 | . . . . . . . . . 29 . . . . . . . . . High Security . | . . . . . . . . . . . . . . . . . . . Max Security . | . . . . . . . . . . . . . . . . . . . Sterilizations 1 | . . . . . . . . . . . 1 . . . . . . . Peak Influence 2443 | 5 191 264 94 . 5 367 1411 862 2443 1282 1190 624 206 90 836 533 204 300 Initial 1282 | . . 57 94 . . . 89 687 309 1282 806 624 206 39 34 465 122 53 Average 370 | 1 77 82 3 . . 185 769 790 1284 1215 1049 515 130 25 159 427 169 91 Influence Increases 9942 | 10 584 745 46 . 10 909 1362 321 2184 10 404 429 . 428 1530 169 152 649 Destroy 0b10 Robot/C 5140 | . 400 460 . . . 520 560 200 1000 . 280 240 . 160 840 120 80 280 Destroy 0b10 Robot/NC 370 | 10 15 40 20 . 10 60 . 15 . 5 5 20 . 40 70 5 20 35 Destroy Leader 822 | . 84 130 . . . 158 30 52 30 . 40 62 . 50 102 . . 84 Allied During Kill 454 | . . . . . . . 41 43 21 . . . . 3 345 1 . . Successful Hack 184 | . 9 37 . . . 43 12 3 21 . . 45 . 14 . . . . Select Force Hacks 60 | . 30 30 . . . . . . . . . . . . . . . . Disable Machine 450 | . . 15 . . . 60 60 . 15 . 15 15 . 45 30 . 45 150 Anti-Garrison Action 1500 | . . . . . . . 550 . 950 . . . . . . . . . Destroy Structure 587 | . 1 3 11 . . 53 79 8 87 5 49 47 . 71 83 43 7 40 Partial Spotted 15 | . . . . . . . . . 15 . . . . . . . . . Lose Combat Pursuer 360 | . 45 30 15 . . 15 30 . 45 . 15 . . 45 60 . . 60 Influence Decreases 9664 | 10 447 639 286 3 10 772 88 1256 217 1301 366 1030 533 414 768 695 304 525 Entered New Map 4332 | . . 80 149 3 . . 48 724 167 1161 346 566 383 17 36 367 184 101 Time Decay 4034 | 10 407 399 137 . 10 572 . 222 . 140 . 464 120 309 522 198 120 404 Lost Part 430 | . 40 10 . . . 50 20 10 30 . 20 . 30 20 50 130 . 20 Lost Ally 268 | . . . . . . . 20 . 20 . . . . 68 160 . . . Purge Threat 600 | . . 150 . . . 150 . 300 . . . . . . . . . . Squads Dispatched 47 | . 5 3 . . . 5 . 3 . 2 2 8 . 8 5 . . 6 Investigation 10 | . 4 1 . . . 1 . 1 . 1 . 1 . . 1 . . . Extermination 8 | . . . . . . . . . . 1 . 1 . 3 . . . 3 Reinforcement 26 | . 1 2 . . . 4 . 2 . . 2 4 . 5 3 . . 3 Assault 3 | . . . . . . . . . . . . 2 . . 1 . . . Garrison . | . . . . . . . . . . . . . . . . . . . Intercept . | . . . . . . . . . . . . . . . . . . . Searches Triggered . | . . . . . . . . . . . . . . . . . . . Construction Impeded 4 | . . . . . . . . . . . . 1 . 2 1 . . . Haulers Reinforced . | . . . . . . . . . . . . . . . . . . . Active Scanning Responses . | . . . . . . . . . . . . . . . . . . . Cargo Convoy Interrupts . | . . . . . . . . . . . . . . . . . . . Stealth | -11 -10 -9 -9 -9 -8 -8 -8 -8 -8 -7 -7 -6 -6 -6 -6 -6 -6 -6 --------- Run | Yrd Mat Mat Min Exi Min Mat Gar Mat Gar Fac DSF Fac Was Fac Ext Cet Arc Hub Distress Signals 19 | . 3 2 . . . . . 2 . . . 1 . 4 5 . . 2 Communications Jammed . | . . . . . . . . . . . . . . . . . . . Distress Signals . | . . . . . . . . . . . . . . . . . . . Times Spotted 378 | . 31 41 4 4 4 36 28 15 50 . 15 22 6 20 49 9 15 29 Peak Tracking Total 8 | . 8 6 1 4 3 6 5 3 6 . 5 6 6 6 7 5 1 5 Tactical Retreats 19 | . 1 1 1 1 . 1 2 . 2 . 1 . . 2 4 . . 3 Traps | -11 -10 -9 -9 -9 -8 -8 -8 -8 -8 -7 -7 -6 -6 -6 -6 -6 -6 -6 ------- Run | Yrd Mat Mat Min Exi Min Mat Gar Mat Gar Fac DSF Fac Was Fac Ext Cet Arc Hub Traps Triggered 20 | . 3 3 . . . 1 4 2 2 . 1 1 . . 3 . . . Indirectly 2 | . . . . . . . 2 . . . . . . . . . . . Trap Hack Attempts . | . . . . . . . . . . . . . . . . . . . Triggered . | . . . . . . . . . . . . . . . . . . . Disarmed . | . . . . . . . . . . . . . . . . . . . Reprogrammed . | . . . . . . . . . . . . . . . . . . . Reused . | . . . . . . . . . . . . . . . . . . . Traps Extracted . | . . . . . . . . . . . . . . . . . . . Installed . | . . . . . . . . . . . . . . . . . . . Triggered . | . . . . . . . . . . . . . . . . . . . Machines | -11 -10 -9 -9 -9 -8 -8 -8 -8 -8 -7 -7 -6 -6 -6 -6 -6 -6 -6 ---------- Run | Yrd Mat Mat Min Exi Min Mat Gar Mat Gar Fac DSF Fac Was Fac Ext Cet Arc Hub Machines Disabled 47 | . . 1 . 2 . 4 10 . 9 . 1 1 . 3 3 . 3 10 Max in Single Turn 3 | . . 1 . 1 . 2 2 . 2 . 1 1 . 3 1 . 1 2 Garrison Access 1 | . . . . . . . . . . . . . . . . . . 1 Garrison Relay 11 | . . . . . . . 5 . 6 . . . . . . . . . Phase Generator 1 | . . . . . . . . . 1 . . . . . . . . . Network Hub 2 | . . . . . . . . . . . . . . . . . . 2 Energy Cycler 1 | . . . . . . . . . . . . . . . 1 . . . Machines Repaired . | . . . . . . . . . . . . . . . . . . . Machines Dismantled . | . . . . . . . . . . . . . . . . . . . Machines Sabotaged . | . . . . . . . . . . . . . . . . . . . Overloaded Fab Kills . | . . . . . . . . . . . . . . . . . . . Hacking | -11 -10 -9 -9 -9 -8 -8 -8 -8 -8 -7 -7 -6 -6 -6 -6 -6 -6 -6 --------- Run | Yrd Mat Mat Min Exi Min Mat Gar Mat Gar Fac DSF Fac Was Fac Ext Cet Arc Hub Machines Accessed 63 | . 4 10 2 1 . 9 4 4 3 4 . 9 . 8 2 1 . 2 Terminals 36 | . 3 7 . . . 5 4 2 3 1 . 4 . 3 2 1 . 1 Fabricators 3 | . . . . . . . . . . 2 . 1 . . . . . . Repair Stations 10 | . . 1 . . . 2 . 1 . 1 . 2 . 3 . . . . Recycling Units 4 | . 1 1 . . . . . . . . . 1 . 1 . . . . Scanalyzers 3 | . . 1 . . . 1 . . . . . 1 . . . . . . Garrison Access 4 | . . . . . . 1 . 1 . . . . . 1 . . . 1 Total Hacks 177 | . 11 37 2 9 . 30 8 16 8 9 . 20 . 19 5 1 . 2 Successful 96 | . 5 25 2 9 . 21 2 11 2 5 . 8 . 4 . . . 2 Failed 80 | . 6 11 . . . 9 6 5 6 4 . 12 . 15 5 1 . . Catastrophic 11 | . . 2 . . . . . 1 2 . . . . 4 1 1 . . Database Lockouts 1 | . . 1 . . . . . . . . . . . . . . . . Manual 58 | . 10 22 . . . 9 . 7 1 . . 2 . 4 3 . . . Terminals 103 | . 10 29 . . . 17 8 7 8 1 . 9 . 7 5 1 . 1 Fabricators 6 | . . . . . . . . . . 4 . 2 . . . . . . Repair Stations 32 | . . 2 . . . 7 . 8 . 4 . 5 . 6 . . . . Recycling Units 9 | . 1 2 . . . . . . . . . 2 . 4 . . . . Scanalyzers 11 | . . 4 . . . 5 . . . . . 2 . . . . . . Garrison Access 5 | . . . . . . 1 . 1 . . . . . 2 . . . 1 Terminal Hacks 42 | . 1 10 2 9 . 8 2 3 2 1 . 3 . . . . . 1 Record 9 | . . . . 9 . . . . . . . . . . . . . . Robot Analysis 4 | . . 2 . . . 2 . . . . . . . . . . . . Prototype ID Bank 5 | . 1 2 . . . 2 . . . . . . . . . . . . Open Door 3 | . . . 2 . . . . . 1 . . . . . . . . . Open DSF 1 | . . . . . . . . . . 1 . . . . . . . . Branch Access Points 2 | . . 1 . . . . . . . . . 1 . . . . . . Emergency Access Points 1 | . . . . . . . 1 . . . . . . . . . . . Terminal Index 1 | . . . . . . . . . . . . 1 . . . . . . Alert Level 3 | . . 1 . . . . . 1 . . . . . . . . . 1 Unreport Threat 4 | . . 1 . . . 1 . 2 . . . . . . . . . . Locate Traps 3 | . . 2 . . . . . . . . . 1 . . . . . . Hauler Manifests 2 | . . . . . . 2 . . . . . . . . . . . . Zone Layout 2 | . . 1 . . . 1 . . . . . . . . . . . . Patrol Navigation 1 | . . . . . . . . . 1 . . . . . . . . . Security Stations 1 | . . . . . . . 1 . . . . . . . . . . . Fabricator Hacks 4 | . . . . . . . . . . 3 . 1 . . . . . . Network Status 2 | . . . . . . . . . . 1 . 1 . . . . . . Load Schematic 1 | . . . . . . . . . . 1 . . . . . . . . Build 1 | . . . . . . . . . . 1 . . . . . . . . Repair Station Hacks 18 | . . 2 . . . 5 . 6 . 1 . 2 . 2 . . . . Scan Component 11 | . . 1 . . . 3 . 3 . 1 . 1 . 2 . . . . Repair 7 | . . 1 . . . 2 . 3 . . . 1 . . . . . . Recycling Unit Hacks 1 | . . . . . . . . . . . . . . 1 . . . . Retrieve Components 1 | . . . . . . . . . . . . . . 1 . . . . Scanalyzer 11 | . . 4 . . . 5 . . . . . 2 . . . . . . Insert Component 3 | . . 1 . . . 2 . . . . . . . . . . . . Analyze 3 | . . 2 . . . 1 . . . . . . . . . . . . Retrieve Study 5 | . . 1 . . . 2 . . . . . 2 . . . . . . Garrison Access Hacks 3 | . . . . . . 1 . 1 . . . . . . . . . 1 Unlock Access 2 | . . . . . . 1 . 1 . . . . . . . . . . Seal Access 1 | . . . . . . . . . . . . . . . . . . 1 Unauthorized Hacks 17 | . 4 9 . . . 2 . 1 . . . . . 1 . . . . Terminals 15 | . 3 8 . . . 2 . 1 . . . . . 1 . . . . Botnet 8 | . 1 3 . . . 2 . 1 . . . . . 1 . . . . Skim 7 | . 2 5 . . . . . . . . . . . . . . . . Fabricators . | . . . . . . . . . . . . . . . . . . . Repair Stations . | . . . . . . . . . . . . . . . . . . . Recycling Units 2 | . 1 1 . . . . . . . . . . . . . . . . Tunnel 2 | . 1 1 . . . . . . . . . . . . . . . . Scanalyzers . | . . . . . . . . . . . . . . . . . . . Garrison Access . | . . . . . . . . . . . . . . . . . . . Data Cores Recovered 2 | . . 1 . . . . . 1 . . . . . . . . . . Used 2 | . . 1 . . . . . 1 . . . . . . . . . . Hacking Detections 52 | . 3 8 . . . 9 4 3 3 3 . 8 . 8 2 1 . . Full Trace Events 9 | . 2 1 . . . 1 2 1 . 1 . 1 . . . . . . Feedback Events . | . . . . . . . . . . . . . . . . . . . Feedback Blocked . | . . . . . . . . . . . . . . . . . . . Robot Schematics Acquired . | . . . . . . . . . . . . . . . . . . . Robots Built . | . . . . . . . . . . . . . . . . . . . Authchips . | . . . . . . . . . . . . . . . . . . . Time . | . . . . . . . . . . . . . . . . . . . Total Robot Build Rating . | . . . . . . . . . . . . . . . . . . . Part Schematics Acquired 2 | . . 1 . . . 1 . . . . . . . . . . . . Parts Built . | . . . . . . . . . . . . . . . . . . . Authchips . | . . . . . . . . . . . . . . . . . . . Time 169 | . . . . . . . . . . 169 . . . . . . . . Total Part Build Rating . | . . . . . . . . . . . . . . . . . . . Part Studies Acquired 5 | . . 1 . . . 2 . . . . . 2 . . . . . . Parts Repaired 7 | . . 1 . . . 2 . 3 . . . 1 . . . . . . Time 328 | . . 26 . . . 138 . 120 . . . 44 . . . . . . Parts Recycled . | . . . . . . . . . . . . . . . . . . . Recycled Matter . | . . . . . . . . . . . . . . . . . . . Retrieved Matter . | . . . . . . . . . . . . . . . . . . . Retrieved Components . | . . . . . . . . . . . . . . . . . . . Parts Scanalyzed 2 | . . 1 . . . 1 . . . . . . . . . . . . Part Schematics Acquired 2 | . . 1 . . . 1 . . . . . . . . . . . . Parts Damaged 1 | . . . . . . 1 . . . . . . . . . . . . Bothacking | -11 -10 -9 -9 -9 -8 -8 -8 -8 -8 -7 -7 -6 -6 -6 -6 -6 -6 -6 ------------ Run | Yrd Mat Mat Min Exi Min Mat Gar Mat Gar Fac DSF Fac Was Fac Ext Cet Arc Hub Used RIF Installer . | . . . . . . . . . . . . . . . . . . . Robots Hacked 1 | . . . . . . . . . . . . . . . 1 . . . Non-combat . | . . . . . . . . . . . . . . . . . . . Combat 1 | . . . . . . . . . . . . . . . 1 . . . Robot Hacks Applied 1 | . . . . . . . . . . . . . . . 1 . . . parse_system 1 | . . . . . . . . . . . . . . . 1 . . . Relay Couplers Released 43 | . . . . . . . 22 . 21 . . . . . . . . . Machine Destruction 43 | . . . . . . . 22 . 21 . . . . . . . . . Fabnet Peak Effective % . | . . . . . . . . . . . . . . . . . . . Robots Rewired 18 | . . . . . . . 4 . . . . . . . 14 . . . Allies Hacked . | . . . . . . . . . . . . . . . . . . . Hacks Repelled . | . . . . . . . . . . . . . . . . . . . Allies | -11 -10 -9 -9 -9 -8 -8 -8 -8 -8 -7 -7 -6 -6 -6 -6 -6 -6 -6 -------- Run | Yrd Mat Mat Min Exi Min Mat Gar Mat Gar Fac DSF Fac Was Fac Ext Cet Arc Hub Total Allies 21 | . . . . . . . 4 . 2 . . . . . 15 . . . Largest Group 13 | . . . . . . . 4 3 2 1 . . . . 13 2 . . Highest-Rated Group 392 | . . . . . . . 126 101 40 20 . . . . 392 54 . . Highest-Rated Ally 39 | . . . . . . . 39 39 31 20 . . . . 39 34 . . Initial Warlord ECA Mod 30 | . . . . . . . . 11 11 21 21 30 30 30 30 30 30 30 Total Orders 3 | . . . . . 1 . . . . . . . . 2 . . . . EXPLORE 1 | . . . . . . . . . . . . . . 1 . . . . RETURN 2 | . . . . . 1 . . . . . . . . 1 . . . . Ally Attacks 182 | . . . . . 2 . 17 38 8 . . . . 11 104 2 . . Total Damage 2997 | . . . . . . . 317 613 115 . . . . . 1887 65 . . Kills 32 | . . . . . . . 3 10 . . . . . . 18 1 . . Allies Corrupted . | . . . . . . . . . . . . . . . . . . . Allies Melted . | . . . . . . . . . . . . . . . . . . . Intel | -11 -10 -9 -9 -9 -8 -8 -8 -8 -8 -7 -7 -6 -6 -6 -6 -6 -6 -6 ------- Run | Yrd Mat Mat Min Exi Min Mat Gar Mat Gar Fac DSF Fac Was Fac Ext Cet Arc Hub Active Infowar (turns) 8161 | 18 999 1061 287 2 258 1212 2 . . 293 3 892 149 975 891 323 24 772 Optics 780 | . . . . . . . . . . . . . . . 481 299 . . Sensors 4060 | . . . . 2 116 1212 2 . . 293 3 753 97 919 480 24 23 136 Structural 521 | . . . . . . . . . . . . . . 100 6 . . 415 Seismic 4235 | 18 999 1061 287 . 142 . . . . 80 . 708 149 91 . . 3 697 Jamming 131 | . . . . . . . . . . . . . . 131 . . . . Robot Analysis Total 4 | . . 2 . . . 2 . . . . . . . . . . . . Derelict Logs Recovered 1 | . . . 1 . . . . . . . . . . . . . . . Drone Launches 20 | . . . . . 5 . . . . . . . . 15 . . . . Drone Recoveries 2 | . . . . . 2 . . . . . . . . . . . . . Exploration | -11 -10 -9 -9 -9 -8 -8 -8 -8 -8 -7 -7 -6 -6 -6 -6 -6 -6 -6 ------------- Run | Yrd Mat Mat Min Exi Min Mat Gar Mat Gar Fac DSF Fac Was Fac Ext Cet Arc Hub Turns Passed 22261 | 104 1128 1805 3946 1379 300 2004 1883 462 2560 294 404 1169 246 1294 1449 405 254 1175 Spaces Moved 10975 | 65 471 768 1665 710 146 982 1053 177 1256 163 189 689 200 815 746 215 93 572 Core 6 | 6 . . . . . . . . . . . . . . . . . . Treads 7181 | . 36 768 1665 710 146 420 1053 177 1256 163 96 . . . . 26 93 572 Legs 3226 | 59 435 . . . . . . . . . 93 689 200 815 746 189 . . Wheels 562 | . . . . . . 562 . . . . . . . . . . . . Hover . | . . . . . . . . . . . . . . . . . . . Flight . | . . . . . . . . . . . . . . . . . . . Fastest Speed 50 | 50 120 160 160 160 160 125 155 152 150 160 120 105 105 104 101 108 160 160 Average Speed 154 | 113 127 160 209 169 190 144 155 152 154 160 159 131 105 114 123 115 160 160 Slowest Speed 240 | 120 190 160 240 240 240 240 155 155 160 160 240 175 113 175 183 186 240 160 Overloaded Moves . | . . . . . . . . . . . . . . . . . . . Propulsion Burnouts . | . . . . . . . . . . . . . . . . . . . Robots Hopped . | . . . . . . . . . . . . . . . . . . . Potential Cave-ins 2 | . . . . . . . . . . . . . . 2 . . . . Cave-ins Triggered . | . . . . . . . . . . . . . . . . . . . Exploration Rate (%) 58 | 5 61 65 100 81 17 74 98 29 91 5 83 19 84 21 74 69 70 62 Regions Visited 18 Branch Regions 7 Pre-discovered Areas 4 | . 1 2 1 . . . . . . . . . . . . . . . Known Exits Taken 6 | . . 1 . . 1 1 . 1 . 1 . . . 1 . . . . Unknown Exits Taken 7 | 1 1 . 1 1 . . . . . . . . . . 1 1 1 . Scrap Searched 2 | . . . 2 . . . . . . . . . . . . . . . Spaces Dug 79 | . . . . . . 6 . . . 5 . 19 . 25 13 . . 11 Terrain Destroyed 667 | . . . 11 33 . 66 16 . 93 5 65 45 . 80 98 102 7 46 Melee 31 | . . . . . . . . . . 5 . 10 . 15 . . . 1 Projectile 98 | . . . . . . 11 . . . . . . . 14 19 3 7 44 AOE 537 | . . . 11 33 . 55 16 . 93 . 65 35 . 51 79 99 . . Terrain Rammed . | . . . . . . . . . . . . . . . . . . . Walls Destroyed . | . . . . . . . . . . . . . . . . . . . Machines Disabled . | . . . . . . . . . . . . . . . . . . . Actions | -11 -10 -9 -9 -9 -8 -8 -8 -8 -8 -7 -7 -6 -6 -6 -6 -6 -6 -6 --------- Run | Yrd Mat Mat Min Exi Min Mat Gar Mat Gar Fac DSF Fac Was Fac Ext Cet Arc Hub Total 14862 | 85 874 1220 2108 804 167 1429 1221 340 1683 183 272 839 234 1055 1122 320 171 735 Wait 2163 | 2 286 313 405 1 7 239 34 136 281 2 7 43 27 88 162 28 38 64 Move 10958 | 64 470 767 1664 709 145 982 1052 176 1254 162 188 689 199 814 745 214 92 572 Hop . | . . . . . . . . . . . . . . . . . . . Pick Up 164 | 6 14 21 5 9 3 28 4 3 7 5 12 7 1 13 10 8 5 3 Fast Attach 98 | 7 4 2 3 4 . 16 5 5 3 . 6 5 3 12 9 9 4 1 Attach 71 | . 6 3 1 7 3 11 2 1 4 2 2 3 3 9 4 9 . 1 Detach 26 | . 1 1 2 1 1 3 . . 2 . 2 2 1 3 . 6 1 . Swap 247 | . 6 28 3 10 2 21 15 2 31 1 15 28 . 30 26 5 3 21 Drop 170 | . 13 17 7 9 2 33 6 3 6 3 20 6 . 17 13 6 6 3 Fire 811 | 3 71 59 8 52 2 95 59 14 82 1 20 39 . 44 142 34 22 64 Melee 54 | . . . . . . . . . 13 7 . 12 . 21 . . . 1 Ram . | . . . . . . . . . . . . . . . . . . . Kick 18 | 3 3 . . . . . . . . . . 5 . 4 2 1 . . Crush 27 | . . 9 10 . 2 1 . . . . . . . . . . . 5 Escape Stasis . | . . . . . . . . . . . . . . . . . . . Rewire 55 | . . . . 2 . . 44 . . . . . . . 9 . . . Trap . | . . . . . . . . . . . . . . . . . . . Miscellaneous . | . . . . . . . . . . . . . . . . . . . Route ------- -11/Scrapyard -10/Materials (discovered 3 exits: *Mat x2 / [*Min]) -9/Materials (discovered 6 exits: *Mat x3 / *Min x2 / *Sto) -9/Mines (discovered 3 exits: *Mat x2 / *Exi) -9/Exiles (discovered 2 exits: [*Min x2]) -8/Mines -8/Materials (discovered 3 exits: *Fac x2 / Gar) -8/Garrison (discovered 3 exits: *Mat x3) -8/Materials (discovered 2 exits: *Fac / Gar) -8/Garrison (discovered 3 exits: *Fac x3) -7/Factory -7/DSF -6/Factory (discovered 4 exits: Low x2 / Ext x2) -6/Waste -6/Factory (discovered 2 exits: *Fac / *Ext) -6/Extension (discovered 3 exits: *Fac x2 / *Cet) -6/Cetus -6/Archives -6/Hub_04(d) (discovered 2 exits: *Fac x2) History --------- Turn | Location | Event 13 | -11/Scrapyard | Discovered new exit (range 15) 105 | -11/Scrapyard | Entered Materials 314 | -10/Materials | Build established: Mutant 430 | -10/Materials | Discovered new exit (range 3) 614 | -10/Materials | Discovered new exit (range 15) 743 | -10/Materials | Core integrity fell below 50% 774 | -10/Materials | Lost 3 parts (1n2w) 1020 | -10/Materials | Discovered new exit (range 12) 1042 | -10/Materials | Build established: Scavenger-Mutant 1233 | -10/Materials | Entered another Materials area 1233 | -9/Materials | Evolved 2 slots: Propulsion x1, Utility x1 1410 | -9/Materials | Build established: Mutant 2024 | -9/Materials | Discovered new exit (range 14) 2294 | -9/Materials | Central database locked down 2294 | -9/Materials | Discovered new exit (range 14) 2654 | -9/Materials | Discovered new exit (range 4) 2661 | -9/Materials | Identified exit to Mines 2661 | -9/Materials | Identified exit to Storage 2708 | -9/Materials | Learned 2 Storage zone layouts 2711 | -9/Materials | Discovered new exit (range 5) 2743 | -9/Materials | Build established: Scavenger-Mutant 2744 | -9/Materials | Loaded intel: 2 repair station locations 2774 | -9/Materials | Repaired Lgt. Armor Plating? 2783 | -9/Materials | Identified exit to Materials 2788 | -9/Materials | Learned location of 1 exit from Recycling 2802 | -9/Materials | Loaded intel: 17 trap records 3038 | -9/Materials | Entered Mines 3106 | -9/Mines | Learned location of Zion (-6) 3116 | -9/Mines | Found the Drone Emporium 3129 | -9/Mines | Found Prototype Device 3324 | -9/Mines | Found a damaged Exp. Sensor Array with a note attached 3329 | -9/Mines | Found Prototype Device 3357 | -9/Mines | YI-UF0 nonchalantly dropped a Grenade Launcher on the ground 3365 | -9/Mines | Discovered exit to Materials (range 13) 3425 | -9/Mines | Build established: Mutant 3601 | -9/Mines | Assembled infested the area 3606 | -9/Mines | Assisted by a Guerilla fighting off Assembled 4257 | -9/Mines | Discovered exit to Materials (range 5) 4482 | -9/Mines | Met a Derelict who couldn't figure out how to use a Trap Extractor 6975 | -9/Mines | Deemed a non-threat by the Exiles lab entrance 6975 | -9/Mines | Discovered new exit (range 5) 6984 | -9/Mines | Entered Exiles 7044 | -9/Exiles | Met 8R-AWN 7077 | -9/Exiles | Met EX-HEX 7128 | -9/Exiles | Met EX-BIN 7176 | -9/Exiles | Met EX-DEC 7438 | -9/Exiles | Discovered new exit (range 10) 7559 | -9/Exiles | Visited The Gauntlet 7802 | -9/Exiles | Attacked by the Exiles 7827 | -9/Exiles | Murdered 4 allies 7852 | -9/Exiles | Core integrity fell below 50% 7939 | -9/Exiles | Destroyed 8R-AWN 7949 | -9/Exiles | Lost 5 parts (2n1u2w) 7961 | -9/Exiles | Found Prototype Protection 7965 | -9/Exiles | Found Prototype Processor 7976 | -9/Exiles | Found Prototype Device 7982 | -9/Exiles | Identified Exp. Sensor Array 7984 | -9/Exiles | Identified AS-neutralizer No. 17b 8245 | -9/Exiles | Build established: Scavenger-Mutant 8344 | -9/Exiles | Discovered new exit (range 14) 8363 | -9/Exiles | Entered Mines 8528 | -8/Mines | CL-ANK came to Exiles' defense 8528 | -8/Mines | Identified Bomb Drone Bay 8563 | -8/Mines | Lost 3 allies 8641 | -8/Mines | Discovered exit to Materials (range 4) 8663 | -8/Mines | Entered Materials 8663 | -8/Materials | Evolved 2 slots: Propulsion x1, Utility x1 8667 | -8/Materials | Identified 8R-AWN's Armor/EX 8675 | -8/Materials | Identified Exp. Targeting Computer 9304 | -8/Materials | Repaired Lgt. Treads 9586 | -8/Materials | Discovered new exit (range 14) 9823 | -8/Materials | Repaired Broken Exp. Heat Sink 10138 | -8/Materials | Discovered new exit (range 15) 10445 | -8/Materials | Build established: Mutant 10667 | -8/Materials | Identified exit to Garrison 10667 | -8/Materials | Entered Garrison 10753 | -8/Garrison | Triggered checkpoint 10980 | -8/Garrison | Triggered checkpoint 10993 | -8/Garrison | Triggered checkpoint 11165 | -8/Garrison | Discovered new exit (range 6) 11653 | -8/Garrison | Learned Materials security intel 11691 | -8/Garrison | Garrison Relay disabled 11726 | -8/Garrison | Discovered new exit (range 3) 11745 | -8/Garrison | Garrison Relay disabled 11935 | -8/Garrison | Discovered new exit (range 13) 11957 | -8/Garrison | Triggered checkpoint 11978 | -8/Garrison | Garrison Relay disabled 12350 | -8/Garrison | Garrison Relay disabled 12487 | -8/Garrison | Garrison Relay disabled 12550 | -8/Garrison | Entered Materials 12550 | -8/Materials | Accompanied by 3 allies 12727 | -8/Materials | Discovered new exit (range 5) 12778 | -8/Materials | Repaired Adv. Treads 12818 | -8/Materials | Repaired Adv. Treads 12863 | -8/Materials | Repaired Med. Treads 13007 | -8/Materials | Identified exit to Garrison 13012 | -8/Materials | Entered Garrison 13012 | -8/Garrison | Accompanied by 1 ally 13033 | -8/Garrison | Triggered checkpoint 13117 | -8/Garrison | Garrison Relay disabled 13207 | -8/Garrison | Triggered checkpoint 13208 | -8/Garrison | Triggered checkpoint 13455 | -8/Garrison | Discovered new exit (range 10) 13492 | -8/Garrison | Triggered checkpoint 13542 | -8/Garrison | Triggered checkpoint 13616 | -8/Garrison | Garrison Relay disabled 13797 | -8/Garrison | Triggered checkpoint 13848 | -8/Garrison | Garrison Relay disabled 13875 | -8/Garrison | Triggered checkpoint 13894 | -8/Garrison | Triggered checkpoint 13918 | -8/Garrison | Destroyed 7 combat bots 14020 | -8/Garrison | Discovered new exit (range 9) 14034 | -8/Garrison | Triggered checkpoint 14109 | -8/Garrison | Garrison Relay disabled 14199 | -8/Garrison | Phase Generator disabled 14376 | -8/Garrison | Discovered new exit (range 14) 14638 | -8/Garrison | Build established: Scavenger-Mutant 14664 | -8/Garrison | Core integrity fell below 50% 15188 | -8/Garrison | Rescued a captive Derelict 15191 | -8/Garrison | Rescued a captive Derelict 15293 | -8/Garrison | Garrison Relay disabled 15381 | -8/Garrison | Triggered checkpoint 15393 | -8/Garrison | Garrison Relay disabled 15451 | -8/Garrison | Attempted to access garrison exit controls, blocked by remote lockdown 15572 | -8/Garrison | Entered Factory 15572 | -7/Factory | Accompanied by 1 ally 15572 | -7/Factory | Evolved 2 slots: Power x1, Utility x1 15866 | -7/Factory | Identified exit to DSF 15866 | -7/Factory | Entered DSF 15923 | -7/DSF | Additional patrols routed to DSF 16043 | -7/DSF | Discovered new exit (range 16) 16076 | -7/DSF | Sterilization system engaged 16096 | -7/DSF | Ambient heat levels rising (+10) 16099 | -7/DSF | Destroyed 8 combat bots 16111 | -7/DSF | Ambient heat levels rising (+10) 16126 | -7/DSF | Ambient heat levels rising (+10) 16141 | -7/DSF | Ambient heat levels rising (+10) 16156 | -7/DSF | Ambient heat levels rising (+10) 16171 | -7/DSF | Ambient heat levels rising (+10) 16186 | -7/DSF | Ambient heat levels rising (+10) 16201 | -7/DSF | Ambient heat levels rising (+10) 16216 | -7/DSF | Ambient heat levels rising (+10) 16231 | -7/DSF | Ambient heat levels rising (+10) 16246 | -7/DSF | Ambient heat levels rising (+10) 16261 | -7/DSF | Ambient heat levels rising (+10) 16270 | -7/DSF | Entered Factory 16270 | -6/Factory | Evolved 2 slots: Propulsion x1, Utility x1 16686 | -6/Factory | Build established: Mutant 16882 | -6/Factory | Repaired Gatling Laser+ 16970 | -6/Factory | First assault squad dispatched 17185 | -6/Factory | Identified exit to Lower Caves 17185 | -6/Factory | Identified exit to Extension 17439 | -6/Factory | Sucked down chute 17439 | -6/Factory | Entered Waste 17449 | -6/Waste | Spotted C-40 Crusher 17454 | -6/Waste | EMP discharged 17492 | -6/Waste | Spotted C-40 Crusher 17523 | -6/Waste | Spotted C-40 Crusher 17529 | -6/Waste | Crushed by Compactor (1 part destroyed, 2 dropped) 17532 | -6/Waste | Crushed by Compactor (1 part destroyed, 2 dropped) 17533 | -6/Waste | Spotted C-40 Crusher 17535 | -6/Waste | Crushed by Compactor (1 part destroyed, 2 dropped) 17554 | -6/Waste | EMP discharged 17554 | -6/Waste | System corruption reached 10% 17562 | -6/Waste | Spotted C-40 Crusher 17566 | -6/Waste | Lost 3 parts (3n) 17627 | -6/Waste | Spotted C-40 Crusher 17654 | -6/Waste | EMP discharged 17661 | -6/Waste | Discovered new exit (range 15) 17685 | -6/Waste | Entered Factory 18492 | -6/Factory | Discovered new exit (range 13) 18503 | -6/Factory | Build established: Scavenger-Mutant 18506 | -6/Factory | Identified exit to Factory 18697 | -6/Factory | Lost 10 allies 18877 | -6/Factory | Build established: Mutant 18964 | -6/Factory | Discovered exit to Extension (range 9) 18979 | -6/Factory | Entered Extension 19079 | -6/Extension | Disrupted transfer network 19612 | -6/Extension | Energy Cycler disabled 19613 | -6/Extension | Rescued a captive Derelict 19613 | -6/Extension | Rescued a captive Derelict 19613 | -6/Extension | Rescued a captive Derelict 19613 | -6/Extension | Rescued a captive Derelict 19613 | -6/Extension | Rescued a captive Derelict 19614 | -6/Extension | Rescued a captive Derelict 19614 | -6/Extension | Rescued a captive Derelict 19617 | -6/Extension | Rescued a captive Derelict 19627 | -6/Extension | Rescued a captive Derelict 19627 | -6/Extension | Rescued a captive Derelict 19629 | -6/Extension | Rescued a captive Derelict 19862 | -6/Extension | Lost 3 allies 19968 | -6/Extension | Build established: Commander-Mutant 20067 | -6/Extension | Spotted B-75 Beast 20101 | -6/Extension | Destroyed B-75 Beast 20118 | -6/Extension | Discovered exit to Factory (range 15) 20185 | -6/Extension | Extracted ID and sensor layout for unrecognized location from A7's data core 20205 | -6/Extension | Lost 5 allies 20369 | -6/Extension | Discovered exit to Factory (range 22) 20369 | -6/Extension | Discovered new exit (range 22) 20379 | -6/Extension | First assault squad dispatched 20408 | -6/Extension | Disrupted transfer network 20428 | -6/Extension | Entered Cetus 20428 | -6/Cetus | Accompanied by 2 allies 20430 | -6/Cetus | Destroyed 11 combat bots 20440 | -6/Cetus | Spotted Cetus Guard 20440 | -6/Cetus | Spotted Cetus Guard 20441 | -6/Cetus | Spotted Cetus Guard 20441 | -6/Cetus | Spotted Cetus Guard 20468 | -6/Cetus | Allies destroyed Cetus Guard 20471 | -6/Cetus | Destroyed Cetus Guard 20475 | -6/Cetus | Core integrity fell below 50% 20478 | -6/Cetus | Destroyed Cetus Guard 20562 | -6/Cetus | Discovered new exit (range 21) 20564 | -6/Cetus | Build established: Scavenger-Mutant 20655 | -6/Cetus | Spotted Cetus Guard 20655 | -6/Cetus | Spotted Cetus Guard 20655 | -6/Cetus | Spotted Cetus Guard 20655 | -6/Cetus | Spotted Cetus Guard 20727 | -6/Cetus | Lost 6 parts (1p3n1u1w) 20729 | -6/Cetus | Destroyed Cetus Guard 20742 | -6/Cetus | Destroyed Cetus Guard 20746 | -6/Cetus | Core integrity fell below 20% 20754 | -6/Cetus | Destroyed Cetus Guard 20784 | -6/Cetus | Lost 5 parts (2p2n1w) 20833 | -6/Cetus | Entered Archives 21007 | -6/Archives | Discovered new exit (range 15) 21087 | -6/Archives | Entered Hub_04(d) 21487 | -6/Hub_04(d) | Discovered exit to Factory (range 9) 22221 | -6/Hub_04(d) | Network Hub disabled 22221 | -6/Hub_04(d) | Network Hub disabled 22222 | -6/Hub_04(d) | Spotted Lightning 22224 | -6/Hub_04(d) | Spotted Lightning 22224 | -6/Hub_04(d) | Spotted Lightning 22238 | -6/Hub_04(d) | System corruption reached 30% 22247 | -6/Hub_04(d) | Discovered exit to Factory (range 15) 22258 | -6/Hub_04(d) | Destroyed Lightning 22262 | -6/Hub_04(d) | Destroyed by H-66 Slayer with Gauss Rifle Last Messages --------------- 22252_ System corrupted: Energy discharge (-77). 22253_ T-07 Excavator exits level. 22253_ Penetrated by Slug. 22255_ Penetrated by EMDS Slug. 22256_ Slug penetrates Lightning. 22258_ H-66 Slayer misfires. 22258_ Slug penetrates Lightning. 22258_ Lightning suffers critical hit (Destroy). 22258_ Lightning destroyed. 22258_ Switching to secondary target: H-66 Slayer. 22258_ Slug penetrates H-66 Slayer. 22258_ H-66 Slayer suffers critical hit (Destroy). 22258_ Destroyed Unknown Power Core. 22258_ Penetrated by EMDS Slug. 22258_ Adv. KE Penetrator destroyed. 22261_ Penetrated by EMDS Slug. 22261_ Slug penetrates Lightning. 22262_ Penetrated by Slug. Map ----- +----------------------------------------------------+ | | | ?????????????????????????????????????? | | ?????????????????????????????????????? | | ?????????????????????????????????????? | | ?????????????????????????????????????? | | ?????????????????????????????????????? | | ??????????????????????????????????? | | ???????????????????????????????????##+ | | ?????????????????????????????????? | | ?????????????????????????????????? | | ??????????? ?????????????????? | | ????????? #??????????????????## | | ?????#;;;;;;;;;;;; ???????????????## | | ???? ; ;; ??????????????? | | ??# ; ;; ;????????????? | | ??# ; ;????????????? | | ??# ; #??????????? | | ??# ; ??????????? | | ??# ; * p ?????????? | | ??# ; %% ?##+###+#??????? | | ??# ; ??#*% ??????? | | ??# ; % ; #???#%*"""" ## ???? | | ??# ; ; #???#!%"""" ## ??? | | ??# ; =%= ; #??##!*"""" ## ? | | ?# ;;;;;;;;;;; #??## """" ## """ | | ?# ;@; #???## ## | | ####"##### ; ; #???## """" ## """ | | # ###;h= ###???## """" ## ? | | # " " " #? ]%! #?????## " " #####?# | | # " " " ##%!!;##?????## "" # #?# | | # " " " +!=h%[ ??????## # ? #?# | | # #=h![; ??????##=="""" # " #?# | | # " " " # * ; #?????##! """" # " ### | | # " " " # ; #?????## """" # ### | | # " " " # ;;;;;#?????## """" # " ## | | #[ # ; ?????## # " ## | | # " " " + # ?????## """" # " ## | | # " " " # # ?????## """" # ## | | # " " " # ? ?????## """" ##+### | | # # ? R < ????## """" ## ###= | | # " # ? ??????## ## #### | | " " # ???????????###+##+#### #### | | # " # ???????????### ## #### | | # T" # ????????????## ##???## | | # # ????????????## ##???## | | ###+###### #?????????#### ## #### | | " # #?????????####+##+#### #### | | # # #?????????## ### ##?? | | # " + ############ """ ### ##?? | | # !!# ## *%! # ### #### | +----------------------------------------------------+ Best States ------------- Heat Dissipation 90 Coolant Potential 65 Energy Generation 38 Energy Capacity 700 Matter Stores 300 Matter Capacity 300 Sight Range 22 Robot Scan Range 20 Terrain Scan Density 85 Jamming Range 12 Additional Mass Support 12 EM Shielding 2 Armor Coverage 900 Resistance: TH 15 Resistance: EX 90 Resistance: EM 25 Weapon Cycling 25 Evasion (%) 55 Targeting Accuracy 12 Core Analysis 6 Armor Integrity Analysis 30 Recoil Reduction 5 Offensive Hacking 12 Defensive Hacking 12 Item Schematics ----------------- Hvy. Assault Rifle | -9/Materials | Scanalyzed Exp. Heat Sink | -8/Materials | Scanalyzed Robot Schematics ------------------ None Fabricated ------------ Nothing Repaired ---------- Lgt. Armor Plating | 13% | -9/Materials Lgt. Treads | 30% | -8/Materials Exp. Heat Sink | 67% | -8/Materials | Broken Adv. Treads | 27% | -8/Materials Adv. Treads | 57% | -8/Materials Med. Treads | 69% | -8/Materials Gatling Laser | 2% | -6/Factory Studied --------- Autogun | -9/Materials | Hacked Rocket Launcher | -8/Materials | Hacked Minigun | -8/Materials | Hacked Arm. Leg | -6/Factory | Hacked Gatling Laser | -6/Factory | Hacked Alien Tech Used ----------------- None Achievements -------------- Bullet Installation Hot Goods Window Shopping Challenges ------------ None Game ------ Seed GreatWeaponMesh Manual? 0 Play Time 03:41:29 Cumulative 188.5 hours Start 2026.02.05 @ 23:05:22 End 2026.02.09 @ 03:00:58 Sessions 8 Manual Loads 0 Difficulty Rogue Special Mode None Game No. 91 Rogue 91 Adventurer 0 Explorer 0 Win Type - Total 4 Types 3/0/0/1/0/0/0/0/0/0 Lore% 55 Gallery% 61 Achievement% 46 Wizard Run 0 Options --------- Layout 1 ASCII 0 Keyboard 1 Movement Numpad Keybinds 0 Fullscreen 1 Font 24/Smallcaps Map View 50x35 Zoom Use 0% Tactical HUD 1 Map Filters NONE Filters NONE Steam 1 RUN: e62a9f56-6fdb-476e-9cf5-14d55a86879f